fUST/lending_fUST_20241228
["ID","MTS","AMOUNT","RATE_DAILY","PERIOD"]
[346923175,1735385432188,-490.25237969,0.00011904,2]
[346923208,1735385438046,-128.83762031,0.00011904,2]
[346923209,1735385438057,-500.0,0.00011998,2]
[346923210,1735385438069,-500.0,0.00011998,2]
[346923211,1735385438079,-500.0,0.00011998,2]
[346923212,1735385438089,-500.0,0.00011998,2]
[346923213,1735385438100,-500.0,0.00011998,2]
[346923214,1735385438110,-500.0,0.00011998,2]
[346923215,1735385438121,-550.3,0.00011999,2]
[346923216,1735385438130,-500.0,0.00011999,2]
[346923217,1735385438141,-1886.44,0.00011999,2]
[346923218,1735385438151,-371.4185357,0.00011999,2]
[346923219,1735385438161,-18985.96486631,0.00012,2]
[346923220,1735385438171,-9986.3906858,0.00012059,2]
[346923221,1735385438180,-619.09,0.00012178,2]
[346923222,1735385438189,-153.0000001,0.000122,2]
[346923223,1735385438198,-153.4855449,0.000122,2]
[346923224,1735385438207,-306.0,0.000122,2]
[346923225,1735385438217,-500.0,0.00012272,2]
[346923226,1735385438227,-500.0,0.00012272,2]
[346923227,1735385438236,-500.0,0.00012272,2]
[346923228,1735385438246,-500.0,0.00012272,2]
[346923229,1735385438255,-500.0,0.00012272,2]
[346923230,1735385438264,-500.0,0.00012272,2]
[346923231,1735385438274,-550.3,0.00012273,2]
[346923232,1735385438283,-500.0,0.00012273,2]
[346923233,1735385438293,-1886.44,0.00012273,2]
[346923234,1735385438303,-153.0,0.000123,2]
[346923235,1735385438312,-153.4855449,0.000123,2]
[346923236,1735385438322,-153.1895935,0.000123,2]
[346923237,1735385438333,-153.0,0.000123,2]
[346923238,1735385438343,-619.09,0.00012452,2]
[346923239,1735385438352,-4566.54866382,0.000125,2]
[346923240,1735385438362,-202.445,0.000125,2]
[346923241,1735385438371,-2671.57394466,0.00012538,2]
[346923253,1735385440982,305.0,0.00020509,120]
[346923265,1735385443257,-500.0,0.00011999,2]
[346923266,1735385443267,-500.0,0.00012273,2]
[346923267,1735385443276,-4937.27879815,0.00012538,2]
[346923268,1735385443286,-500.0,0.00012546,2]
[346923269,1735385443295,-500.0,0.00012546,2]
[346923270,1735385443305,-500.0,0.00012546,2]
[346923271,1735385443314,-500.0,0.00012546,2]
[346923272,1735385443323,-500.0,0.00012546,2]
[346923273,1735385443332,-611.77,0.00012546,2]
[346923274,1735385443341,-550.3,0.00012547,2]
[346923275,1735385443351,-1886.44,0.00012547,2]
[346923276,1735385443360,-151.0,0.00012547,2]
[346923277,1735385443369,-151.0,0.00012547,2]
[346923278,1735385443378,-156.62857614,0.00012547,2]
[346923279,1735385443390,-343.37142386,0.00012547,2]
[346923280,1735385443399,-619.09,0.00012726,2]
[346923281,1735385443408,-300.0,0.000128,3]
[346923282,1735385443418,-203.05,0.000128,2]
[346923283,1735385443427,-500.0,0.0001282,2]
[346923284,1735385443436,-500.0,0.0001282,2]
[346923285,1735385443446,-500.0,0.0001282,2]
[346923286,1735385443455,-500.0,0.0001282,2]
[346923287,1735385443464,-500.0,0.0001282,2]
[346923288,1735385443473,-550.3,0.00012821,2]
[346923289,1735385443483,-1886.44,0.00012821,2]
[346923290,1735385443492,-151.0,0.000129,2]
[346923291,1735385443501,-151.0,0.000129,2]
[346923292,1735385443510,-7387.55497614,0.00012965,2]
[346923325,1735385446134,-500.0,0.00011879,2]
[346923327,1735385446145,-500.0,0.00011999,2]
[346923329,1735385446154,-500.0,0.00012273,2]
[346923331,1735385446164,-449.09,0.00012547,2]
[346923333,1735385446174,-500.0,0.00012821,2]
[346923335,1735385446184,-1481.05136739,0.00012965,2]
[346923337,1735385446193,-201.0,0.00012973,2]
[346923339,1735385446202,-500.94922896,0.00012973,2]
[346923341,1735385446211,-166.01296092,0.00012973,2]
[346923343,1735385446220,-166.13223393,0.00012973,2]
[346923345,1735385446230,-266.01221266,0.00012973,2]
[346923347,1735385446240,-170.0,0.00012973,2]
[346923349,1735385446249,-219.0,0.00012973,2]
[346923351,1735385446258,-267.01282665,0.00012973,2]
[346923353,1735385446268,-152.0,0.00012973,2]
[346923355,1735385446278,-152.0,0.00012973,2]
[346923357,1735385446287,-160.0,0.00012973,2]
[346923359,1735385446298,-228.9851098,0.00012973,2]
[346923409,1735385689670,500.0,0.00020525,120]
[346923417,1735386343139,-1127.047416,0.0001096,2]
[346923418,1735386343162,-1127.047416,0.00011071,2]
[346923419,1735386343183,-500.0,0.00011998,2]
[346923420,1735386343205,-500.0,0.00011998,2]
[346923421,1735386343226,-102.84335823,0.00011998,2]
[346923422,1735386438121,-277.99055866,0.00011759,2]
[346923423,1735386442087,-276.06364361,0.00011759,2]
[346923424,1735386442108,-554.05420227,0.00011878,2]
[346923425,1735386442130,-397.15664177,0.00011998,2]
[346923426,1735386442152,-156.8975605,0.00011998,2]
[346923427,1735386442175,-373.76296457,0.00011998,2]
[346923428,1735386454099,-75.34703543,0.00011998,2]
[346923429,1735386454123,-500.0,0.00011999,2]
[346923430,1735386454148,-500.0,0.00011999,2]
[346923431,1735386454170,-500.0,0.00011999,2]
[346923432,1735386454197,-500.0,0.00011999,2]
[346923433,1735386454221,-25.14080553,0.00012273,2]
[346923487,1735386632459,-515.86,0.00011999,2]
[346923489,1735386632468,-87.88217233,0.00012029,2]
[346923491,1735386632480,-608.51536837,0.00012029,2]
[346923494,1735386632491,-278.46165377,0.00012029,2]
[346923496,1735386632500,-385.48834623,0.0001205,2]
[346923499,1735386632511,-1471.5272069,0.0001205,2]
[346923502,1735386632521,-974.85919447,0.0001215,2]
[346923505,1735386632530,-474.85919447,0.00012273,2]
[346923509,1735386632540,-515.86,0.00012273,2]
[346923512,1735386632549,-837.612,0.0001232,2]
[346923515,1735386632558,-340.35818103,0.00012535,2]
[346923520,1735386632580,-306.43839731,0.00012535,2]
[346923735,1735386638202,-1370.54610625,0.0001241,2]
[346923736,1735386638212,-5110.60502917,0.00012535,2]
[346923737,1735386638245,-1090.56586102,0.00012535,2]
[346923738,1735386638254,-414.34139898,0.00012547,2]
[346923774,1735386643239,-408.28293935,0.00011999,2]
[346923777,1735386643251,-91.71706065,0.00011999,2]
[346923779,1735386643261,-340.25212543,0.00012273,2]
[346923781,1735386643272,-159.74787457,0.00012273,2]
[346923783,1735386643281,-101.51860102,0.00012547,2]
[346923785,1735386643291,-500.0,0.00012547,2]
[346923787,1735386643301,-3508.60433397,0.00012689,2]
[346923789,1735386643312,-720.99550738,0.00012689,2]
[346923799,1735386643390,-6347.43820719,0.00012689,2]
[346923801,1735386643400,-500.0,0.00012786,2]
[346923803,1735386643409,-500.0,0.00012786,2]
[346923806,1735386643419,-246.23205178,0.00012786,2]
[346923808,1735386643430,-500.0,0.00012786,2]
[346923810,1735386643439,-354.42862648,0.00012818,2]
[346923812,1735386643449,-181.32161896,0.00012818,2]
[346923813,1735386643458,-599.29387817,0.00012818,2]
[346923815,1735386643468,-650.55210854,0.00012818,2]
[346923817,1735386643478,-314.02692033,0.00012818,2]
[346924116,1735386646271,-500.0,0.00011879,2]
[346924128,1735386646281,-211.03405835,0.00012818,2]
[346924130,1735386646384,-500.0,0.00012818,2]
[346924132,1735386646394,-309.67436432,0.00012818,2]
[346924134,1735386646404,-192.51569208,0.00012818,2]
[346924136,1735386646414,-627.047416,0.00012818,2]
[346924138,1735386646423,-465.31,0.00012819,2]
[346924140,1735386646432,-500.0,0.00012819,2]
[346924142,1735386646442,-443.15722923,0.00012819,2]
[346924144,1735386646452,-1712.66,0.00012819,2]
[346924146,1735386646462,-500.0,0.00012819,2]
[346924148,1735386646471,-500.0,0.00012819,2]
[346924150,1735386646480,-500.0,0.0001282,2]
[346924152,1735386646490,-500.0,0.0001282,2]
[346924154,1735386646499,-378.60124002,0.0001282,2]
[346924156,1735386646512,-121.39875998,0.0001282,2]
[346924159,1735386646523,-150.71916142,0.0001282,2]
[346924160,1735386646533,-500.0,0.0001282,2]
[346924162,1735386646542,-464.02,0.0001282,2]
[346924165,1735386646552,-500.0,0.0001282,2]
[346924167,1735386646561,-459.19230337,0.0001282,2]
[346924587,1735386672839,878.44595,0.00025,120]
[346924590,1735387477357,500.0,0.00020537,120]
[346924591,1735387532145,-661.5219675,0.00011642,2]
[346924592,1735387532167,-661.5219675,0.0001176,2]
[346924593,1735387532191,-380.71571988,0.00011999,2]
[346924594,1735387547104,-1119.28428012,0.00011879,2]
[346924595,1735387547127,-119.28428012,0.00011999,2]
[346924596,1735387547147,-374.42057018,0.00011999,2]
[346924598,1735387641192,-290.61165732,0.00011642,2]
[346924599,1735387641216,-290.61165732,0.0001176,2]
[346924600,1735387641236,-99.42723996,0.00011762,2]
[346924601,1735387644089,-195.09797034,0.00011762,2]
[346924602,1735387644112,-125.57942982,0.00011999,2]
[346924603,1735387644135,-500.0,0.00011999,2]
[346924604,1735387644159,-500.0,0.00012273,2]
[346924605,1735387644180,-66.35917039,0.00012273,2]
[346924606,1735387652198,-433.64082961,0.00012273,2]
[346924607,1735387652222,-500.0,0.00012273,2]
[346924608,1735387652245,-298.17149114,0.0001232,2]
[346924609,1735387654108,-525.89250886,0.0001232,2]
[346924610,1735387654133,-500.0,0.00012547,2]
[346924611,1735387654159,-500.0,0.00012547,2]
[346924612,1735387654181,-158.67938199,0.00012581,2]
[346924613,1735387810128,-525.89250886,0.00012197,2]
[346924614,1735387810152,-500.0,0.00012688,2]
[346924615,1735387810172,-500.0,0.00012818,2]
[346924616,1735387810193,-500.0,0.00012819,2]
[346924617,1735387810215,-500.0,0.0001282,2]
[346924618,1735387810235,-500.0,0.0001282,2]
[346924619,1735387810257,-172.44,0.0001282,2]
[346924620,1735387810279,-500.0,0.00012821,2]
[346924621,1735387810302,-500.0,0.00012821,2]
[346924622,1735387810322,-241.324,0.00012899,2]
[346924623,1735387810342,-500.0,0.00012899,2]
[346924624,1735387810363,-500.0,0.00012899,2]
[346924625,1735387810385,-598.97945106,0.00012899,2]
[346924626,1735387810407,-500.0,0.00012899,2]
[346924627,1735387810428,-500.0,0.00012899,2]
[346924628,1735387810450,-500.0,0.00012899,2]
[346924629,1735387810472,-500.0,0.00012899,2]
[346924630,1735387810494,-639.63,0.00012899,2]
[346924631,1735387810518,-500.0,0.00012899,2]
[346924632,1735387810541,-194.77348513,0.00012899,2]
[346924633,1735387810565,-500.0,0.00012899,2]
[346924634,1735387810587,-504.12752646,0.00012899,2]
[346924635,1735387810609,-502.23157829,0.00012899,2]
[346924636,1735387810631,-500.0,0.00012899,2]
[346924637,1735387810654,-500.0,0.00012899,2]
[346924638,1735387810677,-1641.3,0.00012899,2]
[346924639,1735387810699,-500.0,0.00012899,2]
[346924640,1735387810721,-500.0,0.00012899,2]
[346924641,1735387810742,-500.0,0.00012899,2]
[346924642,1735387810763,-500.0,0.00012899,2]
[346924643,1735387810785,-500.0,0.00012899,2]
[346924644,1735387810806,-500.0,0.00012899,2]
[346924645,1735387810827,-500.0,0.00012899,2]
[346924646,1735387810848,-500.0,0.00012899,2]
[346924647,1735387810870,-234.090076,0.00012899,2]
[346924648,1735387810890,-500.0,0.00012899,2]
[346924649,1735387810910,-2049.855558,0.000129,2]
[346924650,1735387810932,-2375.37969188,0.0001293,2]
[346924651,1735387810952,-234.03628711,0.00012999,2]
[346924652,1735387810972,-297.56008509,0.00013,2]
[346924653,1735387810994,-9559.24990145,0.00013,2]
[346924654,1735387811015,-155.28939,0.00013,2]
[346924655,1735387811035,-156.517146,0.00013,2]
[346924656,1735387811056,-156.517146,0.00013,2]
[346924657,1735387811077,-159.741615,0.00013,2]
[346924658,1735387811098,-159.741615,0.00013,2]
[346924659,1735387811118,-151.0,0.00013,2]
[346924660,1735387811139,-163.729871,0.00013,2]
[346924661,1735387811160,-151.0,0.00013,2]
[346924662,1735387811181,-151.0,0.00013,2]
[346924663,1735387811201,-151.0,0.00013,2]
[346924664,1735387811222,-388804.59306767,0.00013,2]
[346924690,1735387832542,-849.40411303,0.0001277,2]
[346924739,1735387838475,-4333.22296863,0.0001277,2]
[346924791,1735387838990,-611.01147261,0.0001277,2]
[346924793,1735387839002,-1867.30055559,0.0001277,2]
[346924795,1735387839012,-236.97,0.00012818,2]
[346924797,1735387839021,-394.0,0.0001289,2]
[346924799,1735387839031,-377.50914004,0.00012965,2]
[346924801,1735387839040,-340.46030437,0.00013,2]
[346924804,1735387839052,-2139.4034361,0.00013,2]
[346924806,1735387839063,-447.72129026,0.00013,2]
[346924843,1735387840422,-135998.72957499,0.00013,2]
[346924845,1735387840435,-293.47199999,0.00013,2]
[346924850,1735387840475,-1707.63158257,0.00013,2]
[346924856,1735387840533,-8034.65649337,0.00013,2]
[346925002,1735387843450,-362334.33225068,0.00013,2]
[346925004,1735387843460,-38035.51167091,0.00013065,2]
[346925006,1735387843469,-156.517146,0.00013065,2]
[346925008,1735387843478,-156.517146,0.00013065,2]
[346925010,1735387843487,-159.741615,0.00013065,2]
[346925012,1735387843497,-159.741615,0.00013065,2]
[346925014,1735387843506,-286.731538,0.00013065,2]
[346925016,1735387843515,-151.0,0.00013065,2]
[346925019,1735387843527,-583.67654021,0.00013093,2]
[346925021,1735387843537,-500.0,0.00013095,2]
[346925023,1735387843546,-500.0,0.00013095,2]
[346925025,1735387843556,-151.0,0.000131,2]
[346925028,1735387843565,-151.0,0.000131,2]
[346925030,1735387843574,-500.0,0.00013173,2]
[346925032,1735387843583,-500.0,0.00013173,2]
[346925034,1735387843592,-1641.3,0.00013173,2]
[346925036,1735387843601,-500.0,0.00013173,2]
[346925038,1735387843610,-500.0,0.00013173,2]
[346925040,1735387843619,-500.0,0.00013173,2]
[346925042,1735387843629,-500.0,0.00013173,2]
[346925044,1735387843638,-500.0,0.00013173,2]
[346925046,1735387843647,-500.0,0.00013173,2]
[346925048,1735387843656,-159.741615,0.00013232,2]
[346925050,1735387843665,-159.741615,0.00013232,2]
[346925052,1735387843674,-151.0,0.00013232,2]
[346925054,1735387843683,-150.0,0.00013232,2]
[346925056,1735387843692,-150.0,0.00013232,2]
[346925058,1735387843701,-534.0,0.00013232,2]
[346925060,1735387843711,-2108.0,0.00013232,2]
[346925062,1735387843720,-2353.0,0.00013232,2]
[346925064,1735387843729,-156.517146,0.00013236,2]
[346925066,1735387843738,-156.517146,0.00013236,2]
[346925068,1735387843747,-500.0,0.00013369,2]
[346925070,1735387843757,-500.0,0.00013369,2]
[346925072,1735387843767,-151.0,0.000134,2]
[346925074,1735387843776,-500.0,0.00013447,2]
[346925076,1735387843786,-500.0,0.00013447,2]
[346925078,1735387843794,-1641.3,0.00013447,2]
[346925080,1735387843803,-500.0,0.00013447,2]
[346925082,1735387843813,-500.0,0.00013447,2]
[346925084,1735387843822,-500.0,0.00013447,2]
[346925086,1735387843831,-500.0,0.00013447,2]
[346925088,1735387843842,-500.0,0.00013447,2]
[346925090,1735387843851,-500.0,0.00013447,2]
[346925092,1735387843860,-151.0,0.000135,2]
[346925094,1735387843869,-155.0,0.00013544,2]
[346925096,1735387843878,-152.0,0.00013544,2]
[346925098,1735387843887,-152.0,0.00013544,2]
[346925100,1735387843896,-152.0,0.00013579,2]
[346925102,1735387843905,-151.0,0.00013579,2]
[346925104,1735387843914,-200.0,0.00013582,2]
[346925106,1735387843924,-156.517146,0.00013642,2]
[346925107,1735387843933,-156.517146,0.00013642,2]
[346925109,1735387843942,-151.0,0.00013642,2]
[346925112,1735387843952,-500.0,0.00013643,2]
[346925114,1735387843961,-159.741615,0.00013643,2]
[346925116,1735387843970,-159.741615,0.00013643,2]
[346925118,1735387843979,-500.0,0.00013643,2]
[346925120,1735387843988,-500.0,0.00013698,2]
[346925122,1735387843996,-250.85,0.00013699,2]
[346925124,1735387844006,-151.0,0.000137,2]
[346925126,1735387844015,-215.0,0.00013706,2]
[346925128,1735387844024,-168.0,0.00013706,2]
[346925130,1735387844033,-165.51372313,0.00013706,2]
[346925132,1735387844043,-200.0,0.00013706,2]
[346925134,1735387844051,-500.0,0.00013721,2]
[346925136,1735387844061,-1641.3,0.00013721,2]
[346925138,1735387844070,-500.0,0.00013721,2]
[346925140,1735387844079,-500.0,0.00013721,2]
[346925142,1735387844089,-500.0,0.00013721,2]
[346925144,1735387844098,-500.0,0.00013721,2]
[346925146,1735387844107,-540.80769663,0.00013721,2]
[346925148,1735387844116,-500.0,0.00013721,2]
[346925150,1735387844125,-151.0,0.000138,2]
[346925152,1735387844135,-150.094159,0.000138,2]
[346925154,1735387844144,-500.0,0.00013818,2]
[346925156,1735387844154,-500.0,0.00013917,2]
[346925158,1735387844163,-500.0,0.00013917,2]
[346925160,1735387844172,-400.0,0.00013973,2]
[346925162,1735387844181,-500.0,0.00013995,2]
[346925164,1735387844190,-1641.3,0.00013995,2]
[346925166,1735387844199,-464.65923725,0.00013995,2]
[346925168,1735387844208,-500.0,0.00013995,2]
[346925170,1735387844217,-500.0,0.00013995,2]
[346925172,1735387844226,-151.0,0.00013995,2]
[346925174,1735387844235,-500.0,0.00013995,2]
[346925176,1735387844244,-151.0,0.00014,2]
[346925178,1735387844253,-159.741615,0.00014058,2]
[346925180,1735387844263,-159.741615,0.00014058,2]
[346925182,1735387844272,-151.0,0.000141,2]
[346925184,1735387844281,-156.517146,0.00014156,2]
[346925186,1735387844291,-156.517146,0.00014156,2]
[346925188,1735387844300,-500.0,0.00014191,2]
[346925189,1735387844309,-500.0,0.00014191,2]
[346925192,1735387844319,-1000.9701054,0.00014247,2]
[346925194,1735387844328,-500.0,0.00014269,2]
[346925196,1735387844337,-1641.3,0.00014269,2]
[346925198,1735387844346,-500.0,0.00014269,2]
[346925200,1735387844356,-446.6,0.00014269,2]
[346925202,1735387844365,-500.0,0.00014269,2]
[346925204,1735387844374,-1000.0,0.00014366,2]
[346925206,1735387844383,-500.0,0.00014465,2]
[346925208,1735387844392,-500.0,0.00014465,2]
[346925210,1735387844401,-3522.03530244,0.00014535,2]
[346925215,1735387844444,-345.450003,0.00014535,2]
[346925363,1735388747094,-673.7173572,0.00011962,2]
[346925364,1735388747117,-522.79266287,0.00012283,2]
[346925365,1735388751096,-96.29733713,0.00012283,2]
[346925366,1735388751118,-619.09,0.00012407,2]
[346925367,1735388751139,-2816.82932287,0.00012532,2]
[346925369,1735388826096,-958.92942277,0.00012407,2]
[346925370,1735388829078,-450.0,0.00012407,2]
[346925371,1735388851090,-707.18312535,0.00012407,2]
[346925372,1735388851111,-125.02716635,0.00012532,2]
[346925456,1735389032615,-2834.56570191,0.00012407,2]
[346925458,1735389032626,-2834.56570191,0.00012532,2]
[346925460,1735389032635,-500.0,0.00012688,2]
[346925462,1735389032644,-500.0,0.00012688,2]
[346925464,1735389032653,-500.0,0.00012688,2]
[346925466,1735389032663,-500.0,0.0001282,2]
[346925468,1735389032672,-300.0,0.00012897,2]
[346925470,1735389032681,-364.1187436,0.00012898,2]
[346925472,1735389032690,-389.3367496,0.00012898,2]
[346925475,1735389032700,-500.0,0.00012898,2]
[346925477,1735389032709,-500.0,0.00012898,2]
[346925479,1735389032719,-500.0,0.00012898,2]
[346925481,1735389032728,-596.24,0.00012898,2]
[346925483,1735389032737,-500.0,0.00012898,2]
[346925485,1735389032746,-500.0,0.00012898,2]
[346925487,1735389032758,-500.0,0.00012898,2]
[346925489,1735389032767,-414.72832759,0.00012899,2]
[346925491,1735389032777,-156.94373206,0.00012899,2]
[346925493,1735389032788,-500.0,0.00012899,2]
[346925495,1735389032797,-500.0,0.00012899,2]
[346925497,1735389032806,-500.0,0.00012899,2]
[346925499,1735389032814,-500.0,0.00012899,2]
[346925501,1735389032823,-150.0,0.00012899,2]
[346925503,1735389032832,-596.95,0.00012899,2]
[346925505,1735389032841,-158.20976362,0.00012899,2]
[346925507,1735389032850,-1263.07,0.00012899,2]
[346925509,1735389032860,-500.0,0.00012899,2]
[346925511,1735389032870,-500.0,0.00012899,2]
[346925513,1735389032879,-500.0,0.00012962,2]
[346925515,1735389032889,-359.4364988,0.00012962,2]
[346925517,1735389032898,-500.0,0.00013085,2]
[346925519,1735389032908,-179.12832759,0.00013085,2]
[346925521,1735389032917,-536.63,0.00013085,2]
[346925523,1735389032927,-2353.0,0.00013086,2]
[346925525,1735389032936,-394.0,0.00013086,2]
[346925527,1735389032946,-534.0,0.00013086,2]
[346925529,1735389032956,-500.0,0.00013094,2]
[346925531,1735389032965,-264.72,0.00013095,2]
[346925533,1735389032975,-500.0,0.00013172,2]
[346925535,1735389032984,-500.0,0.00013172,2]
[346925537,1735389032993,-205.13670382,0.00013172,2]
[346925539,1735389033005,-500.0,0.00013173,2]
[346925541,1735389033014,-1263.07,0.00013173,2]
[346925543,1735389033024,-661.5219675,0.00013222,2]
[346925545,1735389033034,-500.0,0.00013236,2]
[346925547,1735389033044,-304.98,0.00013359,2]
[346925549,1735389033055,-500.0,0.00013368,2]
[346925551,1735389033065,-500.0,0.00013446,2]
[346925553,1735389033075,-500.0,0.00013446,2]
[346925555,1735389033084,-500.0,0.00013447,2]
[346925557,1735389033094,-1263.07,0.00013447,2]
[346925559,1735389033103,-500.0,0.0001351,2]
[346925561,1735389033113,-500.0,0.00013642,2]
[346925563,1735389033122,-250.8500013,0.00013699,2]
[346925565,1735389033132,-500.0,0.0001372,2]
[346925567,1735389033141,-500.0,0.0001372,2]
[346925569,1735389033151,-500.0,0.00013721,2]
[346925571,1735389033161,-1263.07,0.00013721,2]
[346925573,1735389033171,-500.0,0.00013784,2]
[346925575,1735389033180,-815.157,0.0001381,2]
[346925577,1735389033189,-500.0,0.00013916,2]
[346925579,1735389033199,-400.0,0.00013973,2]
[346925581,1735389033208,-500.0,0.00013994,2]
[346925583,1735389033218,-500.0,0.00013994,2]
[346925585,1735389033228,-500.0,0.00013995,2]
[346925587,1735389033238,-1263.07,0.00013995,2]
[346925589,1735389033248,-300.53000537,0.00014,2]
[346925591,1735389033259,-500.0,0.00014058,2]
[346925593,1735389033271,-500.0,0.0001419,2]
[346925595,1735389033285,-500.0,0.00014268,2]
[346925597,1735389033295,-500.0,0.00014268,2]
[346925599,1735389033305,-500.0,0.00014269,2]
[346925601,1735389033315,-1263.07,0.00014269,2]
[346925603,1735389033326,-357.93552093,0.00014332,2]
[346925605,1735389033336,-500.0,0.00014464,2]
[346925607,1735389033345,-418.54054143,0.00014479,2]
[346925609,1735389033354,-5776.42219113,0.00014532,2]
[346925611,1735389033363,-151.0,0.00014535,2]
[346925613,1735389033373,-500.0,0.00014542,2]
[346925615,1735389033383,-500.0,0.00014542,2]
[346925617,1735389033392,-500.0,0.00014543,2]
[346925619,1735389033401,-1263.07,0.00014543,2]
[346925620,1735389033411,-500.0,0.00014738,2]
[346925623,1735389033421,-150.0,0.000148,2]
[346925624,1735389033431,-500.0,0.00014816,2]
[346925627,1735389033440,-500.0,0.00014816,2]
[346925628,1735389033451,-500.0,0.00014817,2]
[346925630,1735389033461,-1263.07,0.00014817,2]
[346925632,1735389033472,-203.05,0.000149,2]
[346925635,1735389033482,-203.05,0.000149,3]
[346925636,1735389033491,-203.05,0.000149,3]
[346925638,1735389033500,-429.45133838,0.000149,2]
[346925640,1735389033511,-429.45133836,0.000149,2]
[346925642,1735389033520,-429.45133836,0.000149,2]
[346925644,1735389033529,-14598.09029395,0.00014988,2]
[346925646,1735389033538,-14598.09029395,0.0001499,2]
[346925648,1735389033548,-593.10791884,0.00014994,2]
[346925930,1735389038542,-2360.84107677,0.0001304,2]
[346925931,1735389038552,-500.0,0.00013085,2]
[346925932,1735389038562,-449.25642236,0.00013086,2]
[346925933,1735389038599,-1658.74357764,0.00013086,2]
[346925934,1735389038609,-248.56025814,0.00013172,2]
[346925935,1735389038618,-500.0,0.00013172,2]
[346925936,1735389038627,-500.0,0.00013172,2]
[346925937,1735389038636,-171.41460486,0.00013172,2]
[346925939,1735389038648,-328.58539514,0.00013172,2]
[346925941,1735389038658,-500.0,0.00013172,2]
[346925943,1735389038667,-500.0,0.00013172,2]
[346925945,1735389038676,-500.0,0.00013172,2]
[346925947,1735389038686,-500.0,0.00013172,2]
[346925949,1735389038695,-500.0,0.00013172,2]
[346925951,1735389038704,-394.61704676,0.00013172,2]
[346925952,1735389038714,-217.91540628,0.00013172,2]
[346925954,1735389038723,-278.53824595,0.00013172,2]
[346925955,1735389038732,-500.0,0.00013359,2]
[346925957,1735389038741,-366.6423291,0.00013633,2]
[346925959,1735389038751,-2569.87283379,0.00014994,2]
[346925962,1735389038762,-1790.90305565,0.00014994,2]
[346925965,1735389038774,-1594.47001093,0.00014994,2]
[346925967,1735389038787,-4840.43387554,0.00014994,2]
[346925976,1735389040574,-1421.43839753,0.00014994,2]
[346925980,1735389040634,-1354.55067164,0.00014994,2]
[346925981,1735389040647,-433.31353003,0.00014994,2]
[346925982,1735389040656,-18.24989317,0.00015,5]
[346925983,1735389040694,-143.29677176,0.00015,5]
[346925984,1735389040704,-500.0,0.00015012,2]
[346925985,1735389040714,-469.20241794,0.00015047,2]
[346925986,1735389040723,-500.0,0.0001509,2]
[346925987,1735389040733,-151.0,0.00015091,2]
[346925988,1735389040743,-500.0,0.00015091,2]
[346925989,1735389040752,-1263.07,0.00015091,2]
[346925990,1735389040762,-500.0,0.00015286,2]
[346925991,1735389040772,-300.0,0.000153,5]
[346925992,1735389040782,-300.0,0.000153,6]
[346925993,1735389040791,-203.05,0.000153,3]
[346925994,1735389040801,-203.05,0.000153,5]
[346925995,1735389040810,-203.05,0.000153,6]
[346925996,1735389040819,-600.0,0.0001536,2]
[346925997,1735389040829,-500.0,0.00015364,2]
[346925998,1735389040839,-500.0,0.00015365,2]
[346925999,1735389040848,-500.0,0.00015365,2]
[346926000,1735389040858,-1263.07,0.00015365,2]